Workbook

Sheet Team Reporting
B1: Team Name: | E1: TTKD
A2: Individual reporting file names: | E2: weekly-Alex.xlsx | M2: To update the data you will need to have all of the individual time reporting files opened. Press this button to open all the individual files. If the individual files are not in the same directory as the team file, indicate the subdirectory where they exist.
E3: weekly-Isioma.xlsx
E4: weekly-nick.xlsx
E5: weekly-Stefano.xlsx
A7: Directory for individual files:
A11: First Term | D11: Number of weeks: | E11: 10 | F11: Each week, increment the number of weeks reported for the term.
B13: Totals | E13: First Term
B14: Avg Act | C14: Act | D14: Est | E14: Wk1Act | F14: Wk2Est | G14: Wk2Act | H14: Wk3Est | I14: Wk3Act | J14: Wk4Est | K14: Wk4Act | L14: Wk5Est | M14: Wk5Act | N14: Wk6Est | O14: Wk6Act | P14: Wk7Est | Q14: Wk7Act | R14: Wk8Est | S14: Wk8Act | T14: Wk9Est | U14: Wk9Act | V14: Wk10Est | W14: Wk10Act | X14: FinalsEst | Y14: FinalsAct
A15: =IF(ISBLANK(E2),"",GetValuesFromNamedRange(E2,"Name")) -> Alex | B15: =IF(OR($E$11=0,A15=""),"", SUM(IF(RIGHT($E$14:$Y$14,3)="Act",E15:Y15,0))/$E$11) -> 5.42 | C15: =IF(A15="","",SUM(IF(ISNUMBER(E15:Y15),E15:Y15,0)*ISNUMBER(SEARCH("Act",$E$14:$Y$14)))) -> 54.2 | D15: =IF(A15="","",SUM(IF(ISNUMBER(E15:Y15),E15:Y15,0)*ISNUMBER(SEARCH("Est",$E$14:$Y$14)))) -> 70.7 | E15: =IF(A15 = "","",GetValuesFromNamedRange(E2,"T1Data")) -> 4.5 | F15: 5.75 | G15: 5 | H15: 6.25 | I15: 6.25 | J15: 6.25 | K15: 5.75 | L15: 13.5 | M15: 0.5 | N15: 15 | O15: 14.75 | P15: 5.75 | Q15: 3.5 | R15: 5 | S15: 4.5 | T15: 5.2 | U15: 4.7 | V15: 5 | W15: 4.75 | X15: 3 | Y15: 0
A16: =IF(ISBLANK(E3),"",GetValuesFromNamedRange(E3,"Name")) -> Isioma Nnodum | B16: =IF(OR($E$11=0,A16=""),"", SUM(IF(RIGHT($E$14:$Y$14,3)="Act",E16:Y16,0))/$E$11) -> 4.426666667 | C16: =IF(A16="","",SUM(IF(ISNUMBER(E16:Y16),E16:Y16,0)*ISNUMBER(SEARCH("Act",$E$14:$Y$14)))) -> 44.26666667 | D16: =IF(A16="","",SUM(IF(ISNUMBER(E16:Y16),E16:Y16,0)*ISNUMBER(SEARCH("Est",$E$14:$Y$14)))) -> 0 | E16: =IF(A16 = "","",GetValuesFromNamedRange(E3,"T1Data")) -> 4.75 | F16: 0 | G16: 3.84 | H16: 0 | I16: 5.836666667 | J16: 0 | K16: 4.84 | L16: 0 | M16: 0 | N16: 0 | O16: 6 | P16: 0 | Q16: 6 | R16: 0 | S16: 4 | T16: 0 | U16: 5.5 | V16: 0 | W16: 3.5 | X16: 0 | Y16: 0
A17: =IF(ISBLANK(E4),"",GetValuesFromNamedRange(E4,"Name")) -> Nick | B17: =IF(OR($E$11=0,A17=""),"", SUM(IF(RIGHT($E$14:$Y$14,3)="Act",E17:Y17,0))/$E$11) -> 4.72 | C17: =IF(A17="","",SUM(IF(ISNUMBER(E17:Y17),E17:Y17,0)*ISNUMBER(SEARCH("Act",$E$14:$Y$14)))) -> 47.2 | D17: =IF(A17="","",SUM(IF(ISNUMBER(E17:Y17),E17:Y17,0)*ISNUMBER(SEARCH("Est",$E$14:$Y$14)))) -> 50.7 | E17: =IF(A17 = "","",GetValuesFromNamedRange(E4,"T1Data")) -> 4 | F17: 5 | G17: 4.75 | H17: 6.25 | I17: 7 | J17: 6.75 | K17: 6 | L17: 5 | M17: 0 | N17: 7 | O17: 7.75 | P17: 4.5 | Q17: 4.5 | R17: 4.75 | S17: 4.5 | T17: 4.95 | U17: 4.2 | V17: 6.5 | W17: 4.5 | X17: 0 | Y17: 0
A18: =IF(ISBLANK(E5),"",GetValuesFromNamedRange(E5,"Name")) -> Stefano Sansone | B18: =IF(OR($E$11=0,A18=""),"", SUM(IF(RIGHT($E$14:$Y$14,3)="Act",E18:Y18,0))/$E$11) -> 4.52 | C18: =IF(A18="","",SUM(IF(ISNUMBER(E18:Y18),E18:Y18,0)*ISNUMBER(SEARCH("Act",$E$14:$Y$14)))) -> 45.2 | D18: =IF(A18="","",SUM(IF(ISNUMBER(E18:Y18),E18:Y18,0)*ISNUMBER(SEARCH("Est",$E$14:$Y$14)))) -> 48.2 | E18: =IF(A18 = "","",GetValuesFromNamedRange(E5,"T1Data")) -> 3.25 | F18: 4.75 | G18: 3.5 | H18: 6.5 | I18: 6.75 | J18: 5.25 | K18: 5 | L18: 5 | M18: 0 | N18: 6 | O18: 7 | P18: 5 | Q18: 5.5 | R18: 3.75 | S18: 4 | T18: 4.95 | U18: 4.2 | V18: 7 | W18: 6 | X18: 0 | Y18: 0
A19: =IF(ISBLANK(E6),"",GetValuesFromNamedRange(E6,"Name")) ->  | B19: =IF(OR($E$11=0,A19=""),"", SUM(IF(RIGHT($E$14:$Y$14,3)="Act",E19:Y19,0))/$E$11) ->  | C19: =IF(A19="","",SUM(IF(ISNUMBER(E19:Y19),E19:Y19,0)*ISNUMBER(SEARCH("Act",$E$14:$Y$14)))) ->  | D19: =IF(A19="","",SUM(IF(ISNUMBER(E19:Y19),E19:Y19,0)*ISNUMBER(SEARCH("Est",$E$14:$Y$14)))) ->  | E19: =IF(A19 = "","",GetValuesFromNamedRange(E6,"T1Data")) -> 
A20: Team totals | B20: =IF(OR(E11=0, SUM(B15:B19)=0),0,AVERAGE(B15:B19)) -> 4.771666667 | C20: =SUM(C15:C19) -> 190.8666667 | D20: =SUM(D15:D19) -> 169.6 | E20: =SUM(E15:E19) -> 16.5 | F20: =SUM(F15:F19) -> 15.5 | G20: 17.09 | H20: 19 | I20: 25.83666667 | J20: 18.25 | K20: 21.59 | L20: 23.5 | M20: 0.5 | N20: 28 | O20: 35.5 | P20: 15.25 | Q20: 19.5 | R20: 13.5 | S20: 17 | T20: 15.1 | U20: 18.6 | V20: 18.5 | W20: 18.75 | X20: 3 | Y20: 0
A24: Second Term | D24: Number of weeks: | E24: 11 | F24: Each week, increment the number of weeks reported for the term.
B26: Second Term | E26: Second Term
B27: Avg Act | C27: Act | D27: Est | E27: Wk1Est | F27: Wk1Act | G27: Wk2Est | H27: Wk2Act | I27: Wk3Est | J27: Wk3Act | K27: Wk4Est | L27: Wk4Act | M27: Wk5Est | N27: Wk5Act | O27: Wk6Est | P27: Wk6Act | Q27: Wk7Est | R27: Wk7Act | S27: Wk8Est | T27: Wk8Act | U27: Wk9Est | V27: Wk9Act | W27: Wk10Est | X27: Wk10Act | Y27: Wk11Est | Z27: Wk11Act | AA27: Wk12Est | AB27: Wk12Act | AC27: Wk13Est | AD27: Wk13Act | AE27: Wk14Est | AF27: Wk14Act | AG27: Wk15Est | AH27: Wk15Act | AI27: FinalsEst | AJ27: FinalsAct
A28: =IF(ISBLANK(E2),"",GetValuesFromNamedRange(E2,"Name")) -> Alex | B28: =IF(OR($E$24=0,A28=""),"",SUM(IF(RIGHT($E$27:$Z$27,3)="Act",E28:Z28,0))/$E$24) -> 11.84545455 | C28: =IF($A28="","",SUM(IF(ISNUMBER($E28:$AJ28),$E28:$AJ28,0)*ISNUMBER(SEARCH("Act",$E$27:$AJ$27)))) -> 163.3 | D28: =IF($A28="","",SUM(IF(ISNUMBER($E28:$AJ28),$E28:$AJ28,0)*ISNUMBER(SEARCH("Est",$E$27:$AJ$27)))) -> 191.3 | E28: =IF(A28 = "","",GetValuesFromNamedRange(E2,"T2Data")) -> 5.3 | F28: 7.15 | G28: 13 | H28: 14.4 | I28: 10.5 | J28: 9 | K28: 10 | L28: 8 | M28: 17.5 | N28: 17 | O28: 20 | P28: 11.75 | Q28: 17.5 | R28: 8.5 | S28: 14.5 | T28: 10 | U28: 13.5 | V28: 15.5 | W28: 12.5 | X28: 14.25 | Y28: 16.5 | Z28: 14.75 | AA28: 9.5 | AB28: 4.5 | AC28: 15.5 | AD28: 15 | AE28: 6 | AF28: 5.5 | AG28: 4 | AH28: 4.5 | AI28: 5.5 | AJ28: 3.5
A29: =IF(ISBLANK(E3),"",GetValuesFromNamedRange(E3,"Name")) -> Isioma Nnodum | B29: =IF(OR($E$24=0,A29=""),"",SUM(IF(RIGHT($E$27:$Z$27,3)="Act",E29:Z29,0))/$E$24) -> 7.458181818 | C29: =IF($A29="","",SUM(IF(ISNUMBER($E29:$AJ29),$E29:$AJ29,0)*ISNUMBER(SEARCH("Act",$E$27:$AJ$27)))) -> 102.26 | D29: =IF($A29="","",SUM(IF(ISNUMBER($E29:$AJ29),$E29:$AJ29,0)*ISNUMBER(SEARCH("Est",$E$27:$AJ$27)))) -> 113.02 | E29: =IF(A29 = "","",GetValuesFromNamedRange(E3,"T2Data")) -> 4.5 | F29: 4.5 | G29: 7.8 | H29: 7.8 | I29: 6 | J29: 6.57 | K29: 11.5 | L29: 11.5 | M29: 7 | N29: 7 | O29: 8 | P29: 8.17 | Q29: 6 | R29: 8.5 | S29: 8 | T29: 10 | U29: 6 | V29: 6 | W29: 4 | X29: 4 | Y29: 6 | Z29: 8 | AA29: 13.22 | AB29: 20.22 | AC29: 10 | AD29: 0 | AE29: 4 | AF29: 0 | AG29: 5 | AH29: 0 | AI29: 6 | AJ29: 0
A30: =IF(ISBLANK(E4),"",GetValuesFromNamedRange(E4,"Name")) -> Nick | B30: =IF(OR($E$24=0,A30=""),"",SUM(IF(RIGHT($E$27:$Z$27,3)="Act",E30:Z30,0))/$E$24) -> 9.75 | C30: =IF($A30="","",SUM(IF(ISNUMBER($E30:$AJ30),$E30:$AJ30,0)*ISNUMBER(SEARCH("Act",$E$27:$AJ$27)))) -> 171 | D30: =IF($A30="","",SUM(IF(ISNUMBER($E30:$AJ30),$E30:$AJ30,0)*ISNUMBER(SEARCH("Est",$E$27:$AJ$27)))) -> 150.75 | E30: =IF(A30 = "","",GetValuesFromNamedRange(E4,"T2Data")) -> 8.5 | F30: 9.25 | G30: 4.5 | H30: 5.5 | I30: 7 | J30: 8.75 | K30: 5.25 | L30: 5.5 | M30: 8.5 | N30: 12.5 | O30: 11.5 | P30: 0 | Q30: 6.5 | R30: 8.25 | S30: 9.5 | T30: 17 | U30: 9.5 | V30: 12.75 | W30: 10 | X30: 16.5 | Y30: 11.5 | Z30: 11.25 | AA30: 10.5 | AB30: 11.25 | AC30: 11.5 | AD30: 9.75 | AE30: 11.5 | AF30: 15 | AG30: 8.5 | AH30: 7.75 | AI30: 16.5 | AJ30: 20
A31: =IF(ISBLANK(E5),"",GetValuesFromNamedRange(E5,"Name")) -> Stefano Sansone | B31: =IF(OR($E$24=0,A31=""),"",SUM(IF(RIGHT($E$27:$Z$27,3)="Act",E31:Z31,0))/$E$24) -> 7.118181818 | C31: =IF($A31="","",SUM(IF(ISNUMBER($E31:$AJ31),$E31:$AJ31,0)*ISNUMBER(SEARCH("Act",$E$27:$AJ$27)))) -> 109.3 | D31: =IF($A31="","",SUM(IF(ISNUMBER($E31:$AJ31),$E31:$AJ31,0)*ISNUMBER(SEARCH("Est",$E$27:$AJ$27)))) -> 115.4 | E31: =IF(A31 = "","",GetValuesFromNamedRange(E5,"T2Data")) -> 4.65 | F31: 5.3 | G31: 3.25 | H31: 3.25 | I31: 6.25 | J31: 4.25 | K31: 7.25 | L31: 8.25 | M31: 8.25 | N31: 10.25 | O31: 20.25 | P31: 10.5 | Q31: 8.25 | R31: 10.5 | S31: 5.25 | T31: 6 | U31: 7.25 | V31: 6.75 | W31: 6.25 | X31: 6.25 | Y31: 8.25 | Z31: 7 | AA31: 8.25 | AB31: 9 | AC31: 7 | AD31: 7 | AE31: 7 | AF31: 7 | AG31: 4 | AH31: 4 | AI31: 4 | AJ31: 4
A32: =IF(ISBLANK(E6),"",GetValuesFromNamedRange(E6,"Name")) ->  | B32: =IF(OR($E$24=0,A32=""),"",SUM(IF(RIGHT($E$27:$Z$27,3)="Act",E32:Z32,0))/$E$24) ->  | C32: =IF($A32="","",SUM(IF(ISNUMBER($E32:$Z32),$E32:$Z32,0)*ISNUMBER(SEARCH("Act",$E$27:$Z$27)))) ->  | D32: =IF($A32="","",SUM(IF(ISNUMBER($E32:$Z32),$E32:$Z32,0)*ISNUMBER(SEARCH("Est",$E$27:$Z$27)))) ->  | E32: =IF(A32 = "","",GetValuesFromNamedRange(E6,"T2Data")) -> 
A33: Team totals | B33: =IF(OR(E24=0,SUM(B28:B32)=0),0,AVERAGE(B28:B32)) -> 9.042954545 | C33: =SUM(C28:C32) -> 545.86 | D33: 570.47 | E33: 22.95 | F33: 26.2 | G33: 28.55 | H33: 30.95 | I33: 29.75 | J33: 28.57 | K33: 34 | L33: 33.25 | M33: 41.25 | N33: 46.75 | O33: 59.75 | P33: 30.42 | Q33: 38.25 | R33: 35.75 | S33: 37.25 | T33: 43 | U33: 36.25 | V33: 41 | W33: 32.75 | X33: 41 | Y33: 42.25 | Z33: =SUM(Z28:Z32) -> 41 | AA33: 41.47 | AB33: 44.97 | AC33: 44 | AD33: 31.75 | AE33: 28.5 | AF33: 27.5 | AG33: 21.5 | AH33: 16.25 | AI33: 32 | AJ33: 27.5
A37: Entire Project | D37: Number of weeks: | E37: =E11+E24 -> 21
B39: Entire Project | J39: Even when you have all of the indidividual time reporting files opened, a recalculation may not be triggered in this team reporting file. Press this button to force a recalculation of the totals.
B40: Avg Act | C40: Act | D40: Est
A41: =IF(ISBLANK(E2),"",GetValuesFromNamedRange(E2,"Name")) -> Alex | B41: =IF(OR(A41="",($E$11+$E$24)=0),"",SUM(IF(RIGHT($E$14:$Y$14,3)="Act",E15:Y15,0),IF(RIGHT($E$27:$AJ$27,3)="Act",E28:AJ28,0))/($E$11 + $E$24)) -> 10.35714286 | C41: =IF(A41="","",SUM(C15,C28)) -> 217.5 | D41: =IF(A41="","",SUM(D15,D28)) -> 262
A42: =IF(ISBLANK(E3),"",GetValuesFromNamedRange(E3,"Name")) -> Isioma Nnodum | B42: =IF(OR(A42="",($E$11+$E$24)=0),"",SUM(IF(RIGHT($E$14:$Y$14,3)="Act",E16:Y16,0),IF(RIGHT($E$27:$AJ$27,3)="Act",E29:AJ29,0))/($E$11 + $E$24)) -> 6.977460317 | C42: =IF(A42="","",SUM(C16,C29)) -> 146.5266667 | D42: =IF(A42="","",SUM(D16,D29)) -> 113.02
A43: =IF(ISBLANK(E4),"",GetValuesFromNamedRange(E4,"Name")) -> Nick | B43: =IF(OR(A43="",($E$11+$E$24)=0),"",SUM(IF(RIGHT($E$14:$Y$14,3)="Act",E17:Y17,0),IF(RIGHT($E$27:$AJ$27,3)="Act",E30:AJ30,0))/($E$11 + $E$24)) -> 10.39047619 | C43: =IF(A43="","",SUM(C17,C30)) -> 218.2 | D43: =IF(A43="","",SUM(D17,D30)) -> 201.45
A44: =IF(ISBLANK(E5),"",GetValuesFromNamedRange(E5,"Name")) -> Stefano Sansone | B44: =IF(OR(A44="",($E$11+$E$24)=0),"",SUM(IF(RIGHT($E$14:$Y$14,3)="Act",E18:Y18,0),IF(RIGHT($E$27:$AJ$27,3)="Act",E31:AJ31,0))/($E$11 + $E$24)) -> 7.357142857 | C44: =IF(A44="","",SUM(C18,C31)) -> 154.5 | D44: =IF(A44="","",SUM(D18,D31)) -> 163.6
A45: =IF(ISBLANK(E6),"",GetValuesFromNamedRange(E6,"Name")) ->  | B45: =IF(OR(A45="",($E$11+$E$24)=0),"",SUM(IF(RIGHT($E$14:$Y$14,3)="Act",E19:Y19,0),IF(RIGHT($E$27:$Z$27,3)="Act",E32:Z32,0))/($E$11 + $E$24)) ->  | C45: =IF(A45="","",SUM(C19,C32)) ->  | D45: =IF(A45="","",SUM(D19,D32)) -> 
A46: Team totals | B46: =IF(OR((E11+E24)=0,SUM(B41:B45)=0),0,AVERAGE(B41:B45)) -> 8.770555556 | C46: =SUM(C41:C45) -> 736.7266667 | D46: =SUM(D41:D45) -> 740.07
